{"text_format":"1","workbook":"xlsx","n_sheets":7,"sheets":["Программная","Начало работы","Темы","Алгоритмы и программирование"," Конец работы 2","Представление информации в ЭВМ","Конец работы"],"not_rendered":{"charts":0,"images":0,"macros":1,"external_links":0,"defined_names":0,"comments":0,"pivot_tables":0},"unopened":[],"bounds":{"document_bytes":16777216,"sheet_cells":100000,"rows_first":2000,"rows_last":500,"rows_between":2000,"halvings":0,"cell_chars":16384,"cell_head_chars":4096},"cells_cut":0,"cells_raw":0,"read":"whole","date_system":"1900"}

{"sheet":"Программная","index":0,"n_rows":30,"n_cols":26,"rows_kept":30,"cut":false,"hidden":true,"merged":[[0,0,0,2],[16,0,16,1],[0,5,0,25]]}
["Представление инф. В ЭВМ",null,null,null,null,"Алгоритмы и программирование"]
["№","Выбранный ответ","Правильный ответ","Балл",null,"№",1,2,3,4,5,6,7,8,9,10,11,12,13,14,15,16,17,18,19,20]
[1,{"$f":"'Представление информации в ЭВМ'!E5","v":0},1,{"$f":"IF(B3=C3,1,0)","v":0},null,"Ответ",{"$f":"'Алгоритмы и программирование'!E5","v":0},{"$f":"'Алгоритмы и программирование'!F8","v":0},{"$f":"'Алгоритмы и программирование'!F17","v":0},{"$f":"'Алгоритмы и программирование'!E29","v":0},{"$f":"'Алгоритмы и программирование'!E35","v":0},{"$f":"'Алгоритмы и программирование'!E41","v":0},{"$f":"'Алгоритмы и программирование'!E47","v":0},{"$f":"'Алгоритмы и программирование'!F50","v":0},{"$f":"'Алгоритмы и программирование'!F60","v":0},{"$f":"'Алгоритмы и программирование'!F67","v":0},{"$f":"'Алгоритмы и программирование'!F73","v":0},{"$f":"'Алгоритмы и программирование'!E82","v":0},{"$f":"'Алгоритмы и программирование'!E87","v":0},{"$f":"'Алгоритмы и программирование'!F90","v":0},{"$f":"'Алгоритмы и программирование'!E103","v":0},{"$f":"'Алгоритмы и программирование'!E109","v":0},{"$f":"'Алгоритмы и программирование'!E115","v":0},{"$f":"'Алгоритмы и программирование'!E121","v":0},{"$f":"'Алгоритмы и программирование'!E127","v":0},{"$f":"'Алгоритмы и программирование'!E132","v":0}]
[2,{"$f":"'Представление информации в ЭВМ'!E11","v":0},3,{"$f":"IF(B4=C4,1,0)","v":0},null,null,null,{"$f":"'Алгоритмы и программирование'!F9","v":0},{"$f":"'Алгоритмы и программирование'!F18","v":0},null,null,null,null,{"$f":"'Алгоритмы и программирование'!F51","v":0},{"$f":"'Алгоритмы и программирование'!F61","v":0},{"$f":"'Алгоритмы и программирование'!F68","v":0},{"$f":"'Алгоритмы и программирование'!F74","v":0},null,null,{"$f":"'Алгоритмы и программирование'!F91","v":0}]
[3,{"$f":"'Представление информации в ЭВМ'!E17","v":0},2,0,null,null,null,{"$f":"'Алгоритмы и программирование'!F10","v":0},{"$f":"'Алгоритмы и программирование'!F19","v":0},null,null,null,null,{"$f":"'Алгоритмы и программирование'!F52","v":0},{"$f":"'Алгоритмы и программирование'!F62","v":0},{"$f":"'Алгоритмы и программирование'!F69","v":0},{"$f":"'Алгоритмы и программирование'!F75","v":0},null,null,{"$f":"'Алгоритмы и программирование'!F92","v":0}]
[4,{"$f":"'Представление информации в ЭВМ'!E23","v":0},1,0,null,null,null,{"$f":"'Алгоритмы и программирование'!F11","v":0},{"$f":"'Алгоритмы и программирование'!F20","v":0},null,null,null,null,{"$f":"'Алгоритмы и программирование'!F53","v":0},{"$f":"'Алгоритмы и программирование'!F63","v":0},{"$f":"'Алгоритмы и программирование'!F70","v":0},{"$f":"'Алгоритмы и программирование'!F76","v":0},null,null,{"$f":"'Алгоритмы и программирование'!F93","v":0}]
[5,{"$f":"'Представление информации в ЭВМ'!E29","v":0},2,0,null,null,null,{"$f":"'Алгоритмы и программирование'!F12","v":0},{"$f":"'Алгоритмы и программирование'!F21","v":0},null,null,null,null,{"$f":"'Алгоритмы и программирование'!F54","v":0},{"$f":"'Алгоритмы и программирование'!F64","v":0},null,{"$f":"'Алгоритмы и программирование'!F77","v":0},null,null,{"$f":"'Алгоритмы и программирование'!F94","v":0}]
[6,{"$f":"'Представление информации в ЭВМ'!E35","v":0},1,0,null,null,null,{"$f":"'Алгоритмы и программирование'!F13","v":0},{"$f":"'Алгоритмы и программирование'!F22","v":0},null,null,null,null,{"$f":"'Алгоритмы и программирование'!F55","v":0},null,null,null,null,null,{"$f":"'Алгоритмы и программирование'!F95","v":0}]
[7,{"$f":"'Представление информации в ЭВМ'!E41","v":0},2,0,null,null,null,{"$f":"'Алгоритмы и программирование'!F14","v":0},null,null,null,null,null,{"$f":"'Алгоритмы и программирование'!F56","v":0},null,null,null,null,null,{"$f":"'Алгоритмы и программирование'!F96","v":0}]
[8,{"$f":"'Представление информации в ЭВМ'!E47","v":0},2,0,null,null,null,null,null,null,null,null,null,{"$f":"'Алгоритмы и программирование'!F57","v":0},null,null,null,null,null,{"$f":"'Алгоритмы и программирование'!F97","v":0}]
[9,{"$f":"'Представление информации в ЭВМ'!E53","v":0},3,0,null,"Правильные ответы",1,0,1,4,2,3,3,1,1,1,1,1,1,1,2,2,2,3,2,1]
[10,{"$f":"'Представление информации в ЭВМ'!E59","v":0},1,0,null,null,null,1,0,null,null,null,null,0,1,1,0,null,null,1]
[11,{"$f":"'Представление информации в ЭВМ'!E65","v":0},2,0,null,null,null,1,1,null,null,null,null,0,0,0,1]
[12,{"$f":"'Представление информации в ЭВМ'!E71","v":0},3,0,null,null,null,0,1,null,null,null,null,0,0,1,0]
[13,{"$f":"'Представление информации в ЭВМ'!E77","v":0},3,0,null,null,null,1,1,null,null,null,null,1,0,null,0,null,null,1]
[null,null,"Итог:",{"$f":"SUM(D3:D15)","v":0},null,null,null,0,0,null,null,null,null,1,null,null,null,null,null,1]
["Критерии баллов",null,"Оценка:",{"$f":"IF(D16<6,A18,IF(AND(D16>5,D16<7),A19,IF(AND(D16>6,D16<11),A20,IF(D16>10,A21))))","v":2},null,null,null,1,null,null,null,null,null,1,null,null,null,null,null,1]
[2,"<6",null,null,null,null,null,null,null,null,null,null,null,1]
[3,">5 и <7"]
[4,">6 и <11",null,null,null,"Баллы",{"$f":"IF(G3=G11,1,0)","v":0},{"$f":"IF(H11=H3,2/7,0)","v":0.2857142857142857},{"$f":"IF(I11=I3,2/6,0)","v":0},{"$f":"IF(J3=J11,1,0)","v":0},{"$f":"IF(K3=K11,1,0)","v":0},{"$f":"IF(L3=L11,1,0)","v":0},{"$f":"IF(M3=M11,1,0)","v":0},{"$f":"IF(N11=N3,2/8,0)","v":0},{"$f":"IF(O11=O3,2/5,0)","v":0},{"$f":"IF(P11=P3,2/4,0)","v":0},{"$f":"IF(Q11=Q3,2/5,0)","v":0},{"$f":"IF(R3=R11,1,0)","v":0},{"$f":"IF(S3=S11,1,0)","v":0},{"$f":"IF(T11=T3,2/8,0)","v":0},{"$f":"IF(U3=U11,1,0)","v":0},0,0,0,0,0]
[5,">10",null,null,null,null,null,{"$f":"IF(H12=H4,2/7,0)","v":0},{"$f":"IF(I12=I4,2/6,0)","v":0.33333333333333331},null,null,null,null,{"$f":"IF(N12=N4,2/8,0)","v":0.25},{"$f":"IF(O12=O4,2/5,0)","v":0},{"$f":"IF(P12=P4,2/4,0)","v":0},{"$f":"IF(Q12=Q4,2/5,0)","v":0.4},null,null,{"$f":"IF(T12=T4,2/8,0)","v":0}]
[null,null,null,null,null,null,null,0,0,null,null,null,null,0.25,0.4,0.5,0,null,null,0.25]
[null,null,null,null,null,null,null,0.2857142857142857,0,null,null,null,null,0.25,0.4,0,0.4,null,null,0.25]
[null,null,null,null,null,null,null,0,0,null,null,null,null,0,0.4,null,0.4,null,null,0]
[null,null,null,null,null,null,null,0.2857142857142857,0.33333333333333331,null,null,null,null,0,null,null,null,null,null,0]
[null,null,null,null,null,null,null,0,null,null,null,null,null,0,null,null,null,null,null,0]
[null,null,null,null,null,null,null,null,null,null,null,null,null,0,null,null,null,null,null,0.25]
[null,null,null,null,null,"Итог",{"$f":"SUM(G20:Z27)","v":5.9238095238095241}]
[null,null,null,null,null,"Возможное кол-во баллов",27]
[null,null,null,null,null,"Оценка:",{"$f":"IF(G28>=25,5,IF(AND(G28<25,G28>=18),4,IF(AND(G28<18,G28>10),3,2)))","v":2}]

{"sheet":"Начало работы","index":1,"n_rows":2,"n_cols":14,"rows_kept":2,"cut":false,"hidden":false,"merged":[]}
[]
[null,null,null,null,null,null,null,null,null,null,null,null,null,"ИФ"]

{"sheet":"Темы","index":2,"n_rows":3,"n_cols":1,"rows_kept":3,"cut":false,"hidden":false,"merged":[[1,0,1,5],[2,0,2,5],[0,0,0,5]]}
["Темы"]
["1. Представление информации в ЭВМ"]
["2. Основы алгоритмизации и языки программирования"]

{"sheet":"Алгоритмы и программирование","index":3,"n_rows":132,"n_cols":6,"rows_kept":132,"cut":false,"hidden":false,"merged":[[10,1,10,4],[11,1,11,4],[12,1,12,4],[13,1,13,4],[15,0,15,4],[16,1,16,4],[23,0,23,4],[17,1,17,4],[21,1,21,4],[18,1,18,4],[19,1,19,4],[20,1,20,4],[8,1,8,4],[9,1,9,4],[0,0,0,4],[1,1,1,4],[2,1,2,4],[3,1,3,4],[6,0,6,4],[7,1,7,4],[24,1,24,4],[30,0,30,4],[31,1,31,4],[32,1,32,4],[33,1,33,4],[26,1,26,4],[25,1,25,4],[36,0,36,4],[38,1,38,4],[37,1,37,4],[39,1,39,4],[42,0,42,4],[43,1,43,4],[44,1,44,4],[45,1,45,4],[48,0,48,4],[49,1,49,4],[56,1,56,4],[60,1,60,4],[61,1,61,4],[62,1,62,4],[50,1,50,4],[51,1,51,4],[72,1,72,4],[73,1,73,4],[74,1,74,4],[76,1,76,4],[65,0,65,4],[66,1,66,4],[67,1,67,4],[68,1,68,4],[69,1,69,4],[129,1,129,4],[130,1,130,4],[27,1,27,4],[52,1,52,4],[53,1,53,4],[54,1,54,4],[55,1,55,4],[58,0,58,4],[59,1,59,4],[63,1,63,4],[71,0,71,4],[118,1,118,4],[123,1,123,4],[124,1,124,4],[122,0,122,4],[116,0,116,4],[119,1,119,4],[96,1,96,4],[78,0,78,4],[88,0,88,4],[85,1,85,4],[111,1,111,4],[112,1,112,4],[117,1,117,4],[99,1,99,4],[100,1,100,4],[92,1,92,4],[93,1,93,4],[91,1,91,4],[79,1,79,4],[80,1,80,4],[125,1,125,4],[128,0,128,4],[89,1,89,4],[83,0,83,4],[84,1,84,4],[90,1,90,4],[94,1,94,4],[95,1,95,4],[98,0,98,4],[101,1,101,4],[104,0,104,4],[105,1,105,4],[106,1,106,4],[107,1,107,4],[110,0,110,4],[113,1,113,4]]}
["1. Алгоритм - это:"]
["1)","Указание на выполнение действий"]
["2)","Система правил, описывающая последовательность действий, которые необходимо выполнить для решения задачи"]
["3)","Процесс выполнения вычислений, приводящих к решению задачи"]
[null,null,null,"Ответ:"]
[]
["2. Свойствами алгоритма являются:",null,null,null,null,"Ответы"]
["1)","Информативность"]
["2)","Дискретность"]
["3)","Массовость"]
["4)","Оперативность"]
["5)","Определённость"]
["6)","Цикличность"]
["7)","Результативность"]
[]
["3. Алгоритм может быть задан следующими способами:",null,null,null,null,"Ответы"]
["1)","Словесными"]
["2)","Словесно-графическими"]
["3)","Графическим"]
["4)","Формально-словесным"]
["5)","На алгоритмическом языке"]
["6)","Последовательностью байтов"]
[]
["4. Программа это"]
["1)","Система правил, описывающая последовательность действий, которые необходимо выполнить для решения задачи"]
["2)","Указание на выполнение действий из заданного набора"]
["3)","Область внешней памяти для хранения текстовых, числовых данных и другой информации"]
["4)","Последовательность команд, реализующая алгоритм решения задачи"]
[null,null,null,"Ответ:"]
[]
["5. Программа-интерпретатор выполняет:"]
["1)","Поиск файлов на диске"]
["2)","Пооператорное выполнение программы"]
["3)","Полное выполнение программы"]
[null,null,null,"Ответ:"]
[]
["6. Программа-компилятор:"]
["1)","Переводит исходный текст в машинный код"]
["2)","Формирует текстовый файл"]
["3)","Записывает машинный код в виде загрузочного файла"]
[null,null,null,"Ответ:"]
[]
["7. QBASIC - это"]
["1)","Алгоритмический язык, использующий команды MS-DOS"]
["2)","Алгоритмический язык программирования, работающий в режиме интерпретации"]
["3)","Алгоритмический язык, работающий только в среде Windows"]
[null,null,null,"Ответ:"]
[]
["8. Алфавит языка QBASIC включает:",null,null,null,null,"Ответы"]
["1)","Буквы латинского алфавита"]
["2)","Буквы русского алфавита"]
["3)","Буквы греческого алфавита"]
["4)","Цифры"]
["5)","Знаки арифметических операций: +, -, /, *"]
["6)","Знаки операций отношений: >, <, =, >=, <=, <>"]
["7)","Специальные знаки:!,?, #, %,&, $,«,«,,.,,"]
["8)","круглые скобки () и квадратные скобки []"]
[]
["9. В QBASIC существуют следующие типы данных:",null,null,null,null,"Ответы"]
["1)","Числовые"]
["2)","Текстовые"]
["3)","Указатели"]
["4)","Типы данных"]
["5)","Записи"]
[]
["10. Числовые данные могут быть представлены как:",null,null,null,null,"Ответы"]
["1)","Целые"]
["2)","С фиксированной точкой"]
["3)","В виде строк"]
["4)","С плавающей точкой"]
[]
["11. Выберите правильно представленные числовые данные на QBASIC:",null,null,null,null,"Ответы"]
["1)","+В, -14, 21.5Е2, 0.05"]
["2)","3.4*Е8, 45.Е2, -16"]
["3)","18.2, .05Е1, -18"]
["4)","0.05Е5, ±16, -21,5"]
["5)","21-Ю2, -18, 45.2"]
[]
["12. Запись числа в форме с плавающей точкой — это экспоненциальная форма записи:"]
["1)","Верно"]
["2)","Не верно"]
[null,null,null,"Ответ:"]
[]
["13. Если тип данных несет текстовую информацию, то он должен быть заключен в кавычки:"]
["1)","Верно"]
["2)","Не верно"]
[null,null,null,"Ответ:"]
[]
["14. Арифметические выражения состоят из:",null,null,null,null,"Ответы"]
["1)","Чисел"]
["2)","Констант"]
["3)","Команд MS-DOS"]
["4)","Машинных команд"]
["5)","Переменных"]
["6)","Функций"]
["7)","Круглых скобок"]
["8)","Квадратных скобок"]
[]
["15. Переменная — это:"]
["1)","Служебное слово на языке QBASIC"]
["2)","Область памяти, в которой хранится некоторое значение"]
["3)","Значение регистра"]
[null,null,null,"Ответ:"]
[]
["16. Имя переменной — это:"]
["1)","Любая последовательность любых символов"]
["2)","Последовательность латинских букв, цифр, специальных знаков (кроме пробела ), которая всегда должна начинаться с латинской буквы"]
["3)","Последовательность русских, латинских букв, начинающихся с латинской буквы, и из специальных знаков, допускающая нижнее подчеркивание"]
[null,null,null,"Ответ:"]
[]
["17. Для обозначения строковых переменных:"]
["1)","Рядом с именем слева ставится знак $"]
["2)","Рядом с именем справа ставится знак $"]
["3)","Имя переменной записывается в кавычках"]
[null,null,null,"Ответ:"]
[]
["18. Для обозначения целочисленных переменных:"]
["1)","Рядом с именем слева ставится знак #"]
["2)","Рядом с именем справа ставится знак #"]
["3)","Рядом с именем справа ставится знак %"]
[null,null,null,"Ответ:"]
[]
["19. Для обозначения действительных переменных с двойной точностью:"]
["1)","Рядом с именем слева ставится знак #"]
["2)","Рядом с именем справа ставится знак #"]
["3)","Рядом с именем справа ставятся знаки ##"]
[null,null,null,"Ответ:"]
[]
["20. Верно ли утверждение? В написани имен допускаются как строчные, так и заглавные буквы, и QBASIC не делает между ними различия:"]
["1)","Верно"]
["2)","Не верно"]
[null,null,null,"Ответ:"]

{"sheet":" Конец работы 2","index":4,"n_rows":3,"n_cols":3,"rows_kept":3,"cut":false,"hidden":false,"merged":[]}
["Ученик(ца)",{"$f":"'Начало работы'!O2","v":0}]
[null,"Вы набрали",{"$f":"Программная!G28","v":5.9238095238095241}]
[null,"Ваша оценка",{"$f":"Программная!G30","v":2}]

{"sheet":"Представление информации в ЭВМ","index":5,"n_rows":77,"n_cols":4,"rows_kept":77,"cut":false,"hidden":false,"merged":[[72,0,72,4],[73,1,73,4],[74,1,74,4],[75,1,75,4],[62,1,62,4],[63,1,63,4],[66,0,66,4],[67,1,67,4],[68,1,68,4],[69,1,69,4],[61,1,61,4],[44,1,44,4],[45,1,45,4],[48,0,48,4],[49,1,49,4],[50,1,50,4],[51,1,51,4],[54,0,54,4],[55,1,55,4],[56,1,56,4],[57,1,57,4],[60,0,60,4],[43,1,43,4],[26,1,26,4],[27,1,27,4],[30,0,30,4],[31,1,31,4],[32,1,32,4],[33,1,33,4],[36,0,36,4],[37,1,37,4],[38,1,38,4],[39,1,39,4],[42,0,42,4],[25,1,25,4],[8,1,8,4],[9,1,9,4],[12,0,12,4],[13,1,13,4],[14,1,14,4],[15,1,15,4],[18,0,18,4],[19,1,19,4],[20,1,20,4],[21,1,21,4],[24,0,24,4],[7,1,7,4],[1,1,1,4],[2,1,2,4],[3,1,3,4],[0,0,0,4],[6,0,6,4]]}
["1. Информация в ЭВМ кодируется:"]
["1)","В двоичной системе счисления"]
["2)","В десятичной системе счисления"]
["3)","В символах"]
[null,null,null,"Ответ:"]
[]
["2. Система счисления — это:"]
["1)","Представление чисел в экспоненциальной форме"]
["2)","Представление чисел с постоянным положением запятой"]
["3)","Способ представления чисел с помощью символов, имеющих определенные количественные значения"]
[null,null,null,"Ответ:"]
[]
["3. В зависимости от способа изображения чисел системы счисления делятся на:"]
["1)","Арабские и римские"]
["2)","Позиционные и непозиционные"]
["3)","Предсавление в виде ряда и в виде разрядной сетки"]
[null,null,null,"Ответ:"]
[]
["4. Двоичная система счисления имеет основание Р:"]
["1)","P = 2"]
["2)","P = 0"]
["3)","P = 1"]
[null,null,null,"Ответ:"]
[]
["5. Для представления чисел в восьмеричной системе счисления используют цифры:"]
["1)","От 0 до 8"]
["2)","От 0 до 7"]
["3)","От 1 до 8"]
[null,null,null,"Ответ:"]
[]
["6. Для представления чисел в шестнадцатеричной системе счисления используют:"]
["1)","Цифры от 0 до 9 и буквы от A до F"]
["2)","Буквы от A до Q"]
["3)","Числа от 0 до 15"]
[null,null,null,"Ответ:"]
[]
["7. В дробных числах в информатике целая часть от дробной отделяется:"]
["1)","Запятой"]
["2)","Точкой"]
["3)","Апострофом"]
[null,null,null,"Ответ:"]
[]
["8. Число с плавающей точкой изображается в виде:"]
["1)","Основания системы и мантисы"]
["2)","Мантисы и порядка"]
["3)","Определяемого количество разрядов"]
[null,null,null,"Ответ:"]
[]
["9. Минимальная единица информации в двоичном коде — это"]
["1)","Параграф"]
["2)","Байт"]
["3)","Бит"]
[null,null,null,"Ответ:"]
[]
["10. Один бит содержит:"]
["1)","0 или 1"]
["2)","Одну цифру"]
["3)","Один символ"]
[null,null,null,"Ответ:"]
[]
["11. Один байт содержит:"]
["1)","2 бита"]
["2)","8 битов"]
["3)","16 бит"]
[null,null,null,"Ответ:"]
[]
["12. Стандартным кодом для обмена информации является:"]
["1)","код ACCESS"]
["2)","код WORD"]
["3)","код ASCII"]
[null,null,null,"Ответ:"]
[]
["13. Для перевода чисел из одной системы счисления в другую существуют:"]
["1)","Таблицы перевода"]
["2)","Правила перевода"]
["3)","Соответствующие стандарты"]
[null,null,null,"Ответ:"]

{"sheet":"Конец работы","index":6,"n_rows":3,"n_cols":3,"rows_kept":3,"cut":false,"hidden":false,"merged":[[0,1,0,2]]}
["Ученик(ца)",{"$f":"'Начало работы'!O2","v":0}]
[null,"Вы набрали",{"$f":"Программная!D16","v":0}]
[null,"Ваша оценка",{"$f":"Программная!D17","v":2}]